bitfinex-derivatives/quotes_BTCF0:USTF0_20250504
["timestamp","ask_amount","ask_price","bid_price","bid_amount"]
[1746316800328,0.63191024,95875.0,95874.0,0.001]
[1746316801022,0.59191024,95875.0,95874.0,0.001]
[1746316803721,0.80046304,95875.0,95874.0,0.001]
[1746316804923,0.208568,95868.0,95867.0,0.00156466]
[1746316805122,0.326568,95868.0,95867.0,0.00156466]
[1746316806017,0.421868,95868.0,95867.0,0.00156466]
[1746316806217,0.421868,95868.0,95867.0,0.00256466]
[1746316806417,0.422868,95868.0,95867.0,0.00256466]
[1746316806618,0.422868,95868.0,95867.0,0.00456466]
[1746316811126,0.783668,95868.0,95867.0,0.00456466]
[1746316811928,0.79392776,95868.0,95867.0,0.00456466]
[1746316815332,0.79392776,95868.0,95867.0,6e-08]
[1746316816931,1.21232776,95868.0,95867.0,6e-08]
[1746316819336,0.2085745,95865.0,95864.0,5e-08]
[1746316819530,0.2085745,95865.0,95837.0,0.06444]
[1746316819531,0.2085854,95860.0,95859.0,5e-08]
[1746316819738,0.5693854,95860.0,95859.0,5e-08]
[1746316820240,0.6873854,95860.0,95859.0,5e-08]
[1746316820441,0.8287854,95860.0,95859.0,5e-08]
[1746316820632,0.8297854,95860.0,95859.0,0.00300005]
[1746316822650,1.2481854,95860.0,95859.0,0.00300005]
[1746316823050,1.2491854,95860.0,95859.0,0.00300005]
[1746316823548,1.2491854,95860.0,95859.0,0.003]
[1746316826442,1.2491854,95860.0,95855.0,4e-08]
[1746316826443,0.2085941,95856.0,95855.0,4e-08]
[1746316826644,0.9877941,95856.0,95855.0,4e-08]
[1746316827349,1.2002941,95856.0,95855.0,4e-08]
[1746316828051,1.2022941,95856.0,95855.0,4e-08]
[1746316829348,1.3066181,95856.0,95855.0,4e-08]
[1746316832655,0.2086202,95844.0,95843.0,0.15024509]
[1746316832962,0.6338602,95844.0,95843.0,0.15024509]
[1746316833251,0.7518602,95844.0,95843.0,0.24252798]
[1746316833652,0.8473602,95844.0,95843.0,0.24252798]
[1746316833852,0.8483602,95844.0,95843.0,0.24252798]
[1746316834657,0.8493602,95844.0,95843.0,0.24252798]
[1746316836058,0.8493602,95844.0,95843.0,0.28982798]
[1746316836652,0.8493602,95844.0,95843.0,0.13958289]
[1746316838161,0.8493602,95844.0,95843.0,0.09228289]
[1746316839862,0.8493602,95844.0,95835.0,0.0898]
[1746316839863,0.2086376,95836.0,95835.0,0.0898]
[1746316840058,0.5694376,95836.0,95835.0,0.1358]
[1746316840253,0.5694376,95836.0,95835.0,0.22808289]
[1746316840861,0.6143376,95836.0,95835.0,0.22808289]
[1746316841056,0.6153376,95836.0,95835.0,0.22808289]
[1746316842259,0.6259543,95836.0,95835.0,0.22808289]
[1746316842455,0.6269543,95836.0,95835.0,0.23008289]
[1746316847566,0.6163376,95836.0,95835.0,0.23008289]
[1746316850865,0.5714376,95836.0,95835.0,0.23008289]
[1746316856162,0.6894376,95836.0,95835.0,0.23008289]
[1746316856362,0.7344376,95836.0,95835.0,0.23008289]
[1746316858069,0.6164376,95836.0,95835.0,0.23008289]
[1746316858972,0.6164376,95836.0,95835.0,0.49520388]
[1746316860564,0.6164376,95836.0,95835.0,0.44940388]
[1746316861064,0.7344376,95836.0,95835.0,0.44940388]
[1746316862160,0.6164376,95836.0,95835.0,0.44940388]
[1746316862974,0.6164376,95836.0,95835.0,0.42786923]
[1746316865174,0.6164376,95836.0,95835.0,0.26401142]
[1746316866677,0.6164376,95836.0,95835.0,0.02042508]
[1746316870891,0.6164376,95836.0,95835.0,0.26401142]
[1746316872170,0.6164376,95836.0,95835.0,0.30931142]
[1746316879194,0.6164376,95836.0,95835.0,0.06572508]
[1746316879487,0.6164376,95836.0,95835.0,0.0453]
[1746316879693,0.6164376,95836.0,95835.0,0.06572508]
[1746316880987,0.6164376,95836.0,95835.0,0.02042508]
[1746316882094,0.7344376,95836.0,95835.0,0.02042508]
[1746316882696,0.2086442,95833.0,95832.0,0.00156523]
[1746316883088,0.2086442,95833.0,95832.0,0.02199031]
[1746316883485,0.2976442,95833.0,95832.0,0.02199031]
[1746316883989,0.2986442,95833.0,95832.0,0.00156523]
[1746316884193,0.4176442,95833.0,95832.0,0.00256523]
[1746316884388,0.4176442,95833.0,95832.0,3e-08]
[1746316886297,0.4176442,95833.0,95832.0,0.02042511]
[1746316887197,0.2996442,95833.0,95832.0,0.02042511]
[1746316890194,0.4176442,95833.0,95832.0,0.02042511]
[1746316891003,0.208655,95828.0,95827.0,0.28163115]
[1746316891192,0.569455,95828.0,95827.0,0.28163115]
[1746316891501,0.569455,95828.0,95827.0,0.26598115]
[1746316891899,0.659055,95828.0,95827.0,0.26598115]
[1746316892296,0.778055,95828.0,95827.0,0.23379815]
[1746316893005,0.778055,95828.0,95827.0,0.14010055]
[1746316893206,0.778055,95828.0,95827.0,0.04712535]
[1746316893410,0.778055,95828.0,95827.0,5e-08]
[1746316893601,0.779055,95828.0,95827.0,5e-08]
[1746316894802,0.2086659,95823.0,95822.0,1e-08]
[1746316895100,0.2086659,95823.0,95821.0,0.03652]
[1746316895101,0.2086681,95822.0,95821.0,0.03652]
[1746316895293,0.2086746,95819.0,95818.0,0.21258784]
[1746316895498,0.5694746,95819.0,95818.0,0.21258784]
[1746316896908,0.5724746,95819.0,95818.0,0.21258784]
[1746316899903,0.5724746,95819.0,95812.0,0.03652]
[1746316900107,0.2086877,95813.0,95812.0,0.03652]
[1746316900405,0.2086921,95811.0,95810.0,0.0473]
[1746316901597,0.2086921,95811.0,95810.0,0.0912]
[1746316902106,0.2106921,95811.0,95810.0,0.0912]
[1746316902306,0.208703,95806.0,95805.0,0.31814519]
[1746316902699,0.10438,95806.0,95790.0,0.17068354]
[1746316902899,0.2087509,95784.0,95770.0,0.3608]
[1746316903212,0.2902209,95784.0,95783.0,0.3442825]
[1746316903805,0.33413152,95784.0,95783.0,0.3442825]
[1746316904008,0.2087552,95782.0,95781.0,0.0458]
[1746316904203,0.00011062,95784.0,95783.0,0.2087531]
[1746316905010,0.2087552,95782.0,95781.0,0.0458]
[1746316905403,0.2087552,95782.0,95781.0,0.3589614]
[1746316906607,0.2107552,95782.0,95781.0,0.7197614]
[1746316906806,0.2107552,95782.0,95781.0,0.73011896]
[1746316907007,0.2107552,95782.0,95781.0,0.7197614]
[1746316907516,0.2127552,95782.0,95781.0,0.7197614]
[1746316908211,0.2127552,95782.0,95781.0,0.6153574]
[1746316908712,0.004,95782.0,95781.0,0.7197614]
[1746316909010,0.2127552,95782.0,95781.0,0.7197614]
[1746316909509,0.004,95782.0,95781.0,0.7197614]
[1746316909702,0.0521813,95796.0,95795.0,0.2087269]
[1746316909902,0.3130877,95799.0,95798.0,0.2087204]
[1746316910399,0.2087268,95799.0,95798.0,0.2087204]
[1746316910608,0.2087268,95799.0,95798.0,0.3131044]
[1746316911397,0.0015,95815.0,95798.0,0.104384]
[1746316911604,0.2086998,95813.0,95812.0,0.2086855]
[1746316911903,0.2608731,95813.0,95812.0,0.2086855]
[1746316912211,0.21023812,95821.0,95820.0,0.2086725]
[1746316912515,0.00156642,95821.0,95820.0,0.2086725]
[1746316912714,0.61790892,95845.0,95844.0,0.2086202]
[1746316913013,0.2086376,95838.0,95837.0,0.2086311]
[1746316913207,0.2086376,95836.0,95835.0,0.2728789]
[1746316913413,0.2086376,95836.0,95835.0,0.06424]
[1746316913613,0.2086376,95836.0,95835.0,0.2728798]
[1746316913907,0.2086376,95836.0,95835.0,0.06424]
[1746316914109,0.2086572,95827.0,95826.0,0.21666396]
[1746316914415,0.0521607,95834.0,95833.0,0.2086442]
[1746316914704,0.2086451,95834.0,95833.0,0.2086442]
[1746316914910,0.2056451,95834.0,95833.0,0.2086442]
[1746316915111,0.0454,95835.0,95834.0,0.208642]
[1746316915502,0.3608,95836.0,95835.0,0.2086398]
[1746316915705,0.0448,95840.0,95839.0,0.2086311]
[1746316915920,0.2086245,95843.0,95842.0,0.2086246]
[1746316916110,0.0448,95846.0,95845.0,0.2086159]
[1746316916310,0.2086159,95850.0,95849.0,0.2607504]
[1746316917310,0.08655353,95855.0,95854.0,0.2085984]
[1746316918410,0.08755353,95855.0,95854.0,0.2085984]
[1746316918611,0.29615633,95855.0,95854.0,0.2085984]
[1746316919316,0.29815633,95855.0,95854.0,0.2085984]
[1746316920214,0.2086159,95846.0,95845.0,0.3608]
[1746316920516,0.0521565,95842.0,95832.0,0.00156523]
[1746316920819,0.2086333,95838.0,95835.0,0.0443]
[1746316921007,0.2086333,95838.0,95837.0,0.42062494]
[1746316922016,0.2086333,95838.0,95837.0,0.2086354]
[1746316922219,0.2106333,95838.0,95837.0,0.2086354]
[1746316922405,0.2106333,95838.0,95834.0,0.4129603]
[1746316922610,0.2086398,95836.0,95835.0,0.2086383]
[1746316922810,0.0521602,95835.0,95832.0,0.00156523]
[1746316923012,0.2086442,95833.0,95832.0,0.00156523]
[1746316924319,0.3266442,95833.0,95832.0,0.00156523]
[1746316924520,0.3276442,95833.0,95832.0,0.00156523]
[1746316924719,0.6884442,95833.0,95832.0,0.00156523]
[1746316925211,0.6894442,95833.0,95832.0,0.00156523]
[1746316926218,0.5714442,95833.0,95832.0,0.00156523]
[1746316927207,0.68930063,95833.0,95832.0,0.00156523]
[1746316928212,0.57130063,95833.0,95832.0,0.00156523]
[1746316930324,0.21050063,95833.0,95832.0,0.00156523]
[1746316930811,0.21050063,95833.0,95832.0,0.04636523]
[1746316931015,0.21050063,95833.0,95832.0,0.09036523]
[1746316931322,0.21050063,95833.0,95832.0,0.29901153]
[1746316932126,0.21050063,95833.0,95832.0,0.09036523]
[1746316932332,0.21050063,95833.0,95832.0,0.29901153]
[1746316932526,0.002,95833.0,95832.0,0.22312261]
[1746316933618,0.2086263,95842.0,95841.0,0.2607787]
[1746316933825,0.2086263,95842.0,95841.0,0.6215787]
[1746316934814,0.2096263,95842.0,95841.0,0.6215787]
[1746316935134,0.2106263,95842.0,95841.0,0.7259187]
[1746316935314,0.002,95842.0,95841.0,0.7259187]
[1746316935720,0.2106246,95842.0,95841.0,0.7259187]
[1746316936219,0.2106246,95842.0,95841.0,0.7701187]
[1746316936427,0.002,95842.0,95841.0,0.7701187]
[1746316936623,0.0521496,95854.0,95849.0,0.2086093]
[1746316936825,0.2095989,95856.0,95855.0,0.2085963]
[1746316937332,0.2095989,95856.0,95855.0,0.3129203]
[1746316937532,0.001,95856.0,95855.0,0.3129203]
[1746316937734,0.001,95856.0,95855.0,0.3571203]
[1746316938432,0.002,95856.0,95855.0,0.3581203]
[1746316938732,0.003,95856.0,95855.0,0.3591203]
[1746316940035,0.003,95856.0,95855.0,0.4074203]
[1746316940536,0.2115941,95856.0,95855.0,0.4074203]
[1746316941225,0.2574941,95856.0,95855.0,0.4074203]
[1746316943534,0.2574941,95856.0,95855.0,0.106324]
[1746316943734,0.2574941,95856.0,95855.0,0.3149203]
[1746316945034,0.2574941,95856.0,95855.0,0.2105963]
[1746316945224,0.2574941,95856.0,95855.0,0.2572963]
[1746316950241,0.2574941,95856.0,95855.0,0.41629459]
[1746316954938,0.2574941,95856.0,95855.0,0.2572963]
[1746316956945,0.2574941,95856.0,95855.0,0.2105963]
[1746316975863,0.309643,95856.0,95853.0,0.31645163]
[1746316976160,0.2545963,95855.0,95854.0,0.2085984]
[1746316976547,0.3034963,95855.0,95854.0,0.2085984]
[1746316977450,0.3044963,95855.0,95854.0,0.2095984]
[1746316978562,0.3054963,95855.0,95854.0,0.2095984]
[1746316982166,0.0521463,95860.0,95859.0,0.1042927]
[1746316982363,0.0492,95862.0,95859.0,0.1042927]
[1746316982569,0.2085601,95872.0,95871.0,0.2085571]
[1746316984066,0.2125601,95872.0,95871.0,0.2085571]
[1746316984469,0.2135601,95872.0,95871.0,0.2085571]
[1746316985670,0.2584601,95872.0,95871.0,0.2085571]
[1746316988578,0.2584601,95872.0,95871.0,0.2558571]
[1746316990078,0.3764601,95872.0,95871.0,0.2558571]
[1746316992975,0.1679,95872.0,95871.0,0.2558571]
[1746316993279,0.2135593,95872.0,95871.0,0.46827549]
[1746316993880,0.005,95872.0,95871.0,0.46827549]
[1746316994081,0.2135593,95872.0,95871.0,0.46827549]
[1746316994286,0.005,95872.0,95871.0,0.46827549]
[1746316994477,0.2135593,95872.0,95871.0,0.46827549]
[1746316995079,0.2586593,95872.0,95871.0,0.46827549]
[1746316995885,0.2085441,95883.0,95882.0,0.2085332]
[1746316996078,0.3265441,95883.0,95882.0,0.2085332]
[1746316996778,0.3265441,95883.0,95882.0,0.21645785]
[1746316997079,0.3355441,95883.0,95882.0,0.21645785]
[1746316998279,0.2175441,95883.0,95882.0,0.21645785]
[1746316999185,0.2615441,95883.0,95882.0,0.21645785]
[1746317000780,0.009,95883.0,95882.0,0.21645785]
[1746317001888,0.009,95883.0,95882.0,0.42865924]
[1746317002782,0.001,95916.0,95897.0,0.2606264]
[1746317003079,0.2561006,95899.0,95898.0,0.2548027]
[1746317003690,0.2085267,95887.0,95886.0,0.06416]
[1746317004388,0.2075267,95887.0,95886.0,0.3248098]
[1746317005086,0.3255267,95887.0,95886.0,0.3248098]
[1746317005275,0.3710267,95887.0,95886.0,0.3248098]
[1746317005681,0.3730267,95887.0,95886.0,0.3248098]
[1746317005881,0.3720267,95887.0,95886.0,0.3248098]
[1746317006291,0.2540267,95887.0,95886.0,0.3248098]
[1746317006686,0.2550267,95887.0,95886.0,0.3248098]
[1746317007389,0.3730267,95887.0,95886.0,0.3248098]
[1746317008096,0.4195267,95887.0,95886.0,0.3248098]
[1746317008593,0.4195267,95887.0,95886.0,0.2726781]
[1746317010094,0.3015267,95887.0,95886.0,0.2726781]
[1746317011194,0.4195267,95887.0,95886.0,0.2726781]
[1746317012199,0.4195267,95887.0,95886.0,0.2085181]
[1746317013189,0.3015267,95887.0,95886.0,0.2085181]
[1746317014097,0.4195267,95887.0,95886.0,0.2085181]
[1746317017794,0.4195267,95887.0,95886.0,0.42062017]
[1746317017996,0.3730267,95887.0,95886.0,0.42062017]
[1746317018201,0.569313,95894.0,95893.0,0.2085136]
[1746317018500,0.621441,95894.0,95893.0,0.2085136]
[1746317019000,0.260641,95894.0,95893.0,0.5693136]
[1746317019196,0.260641,95894.0,95893.0,0.6626136]
[1746317019393,0.266641,95894.0,95893.0,0.6646136]
[1746317021395,0.214513,95894.0,95893.0,0.6646136]
[1746317022504,0.214513,95894.0,95893.0,0.87671567]
[1746317023103,0.3528049,95899.0,95896.0,0.0521263]
[1746317023307,0.3528049,95899.0,95898.0,0.2085027]
[1746317023603,0.2564049,95899.0,95898.0,0.2085027]
[1746317023805,0.2085049,95899.0,95898.0,0.2999027]
[1746317024298,0.2115049,95899.0,95898.0,0.2999027]
[1746317024497,0.2145049,95899.0,95898.0,0.2999027]
[1746317024698,0.3089049,95899.0,95898.0,0.2999027]
[1746317025799,0.3059049,95899.0,95898.0,0.2999027]
[1746317025998,0.3079049,95899.0,95898.0,0.2999027]
[1746317026199,0.4259049,95899.0,95898.0,0.2999027]
[1746317027200,0.3079049,95899.0,95898.0,0.2999027]
[1746317033016,0.3069049,95899.0,95898.0,0.2999027]
[1746317033415,0.3059049,95899.0,95898.0,0.2999027]
[1746317033715,0.003,95899.0,95898.0,0.2999027]
[1746317034716,0.2115006,95899.0,95898.0,0.2999027]
[1746317035017,0.2115006,95899.0,95898.0,0.51200477]
[1746317037814,0.2589006,95899.0,95898.0,0.51200477]
[1746317039208,0.3769006,95899.0,95898.0,0.51200477]
[1746317040218,0.3769006,95899.0,95898.0,0.2999027]
[1746317041218,0.2589006,95899.0,95898.0,0.2999027]
[1746317042114,0.3769006,95899.0,95898.0,0.2999027]
[1746317042313,0.4254006,95899.0,95898.0,0.2999027]
[1746317042714,0.3769006,95899.0,95898.0,0.2999027]
[1746317043219,0.2115006,95899.0,95898.0,0.2999027]
[1746317044219,0.3295006,95899.0,95898.0,0.2999027]
[1746317045321,0.4253006,95899.0,95898.0,0.2999027]
[1746317049227,0.3073006,95899.0,95898.0,0.2999027]
[1746317050118,0.2593006,95899.0,95898.0,0.2999027]
[1746317050315,0.2593006,95899.0,95898.0,0.0444]
[1746317050515,0.2085093,95895.0,95894.0,0.05213]
[1746317050723,0.5693093,95895.0,95894.0,0.05213]
[1746317050921,0.5693093,95895.0,95894.0,0.2085114]
[1746317051220,0.3265093,95895.0,95894.0,0.2085114]
[1746317051416,0.118,95895.0,95894.0,0.2085114]
[1746317051616,0.119,95895.0,95894.0,0.2085114]
[1746317051815,0.12,95895.0,95894.0,0.3023114]
[1746317052328,0.002,95895.0,95894.0,0.3023114]
[1746317054217,0.002,95895.0,95894.0,0.0938]
[1746317054621,0.002,95895.0,95894.0,0.3023114]
[1746317057316,0.002,95895.0,95894.0,0.53535901]
[1746317058522,0.002,95895.0,95894.0,0.89615901]
[1746317059632,0.2085057,95897.0,95896.0,0.2085071]
[1746317060726,0.2095057,95897.0,95896.0,0.2085071]
[1746317061226,0.2105057,95897.0,95896.0,0.2085071]
[1746317061735,0.2085057,95897.0,95896.0,0.2095071]
[1746317063833,0.208499,95900.0,95899.0,0.2085006]
[1746317064132,0.326499,95900.0,95899.0,0.2085006]
[1746317064524,0.3786237,95900.0,95899.0,0.2085006]
[1746317065031,0.118,95900.0,95899.0,0.2095006]
[1746317065232,0.2084941,95902.0,95901.0,0.2084962]
[1746317065430,0.2084941,95902.0,95901.0,0.2725362]
[1746317065934,0.2084941,95902.0,95901.0,0.3701362]
[1746317066335,0.3264941,95902.0,95901.0,0.3701362]
[1746317068135,0.3264941,95902.0,95901.0,0.60318381]
[1746317068833,0.0462,95908.0,95907.0,0.2084832]
[1746317069039,0.3127236,95911.0,95910.0,0.2084766]
[1746317069836,0.3596236,95911.0,95910.0,0.2084766]
[1746317070238,0.4776236,95911.0,95910.0,0.2084766]
[1746317071639,0.4816236,95911.0,95910.0,0.2084766]
[1746317072340,0.5307236,95911.0,95910.0,0.2084766]
[1746317072541,0.5287236,95911.0,95910.0,0.2084766]
[1746317072740,0.5297236,95911.0,95910.0,0.2084766]
[1746317073740,0.5287236,95911.0,95910.0,0.2084766]
[1746317074133,0.2084766,95910.0,95909.0,0.0468]
[1746317074441,0.2581766,95910.0,95909.0,0.0468]
[1746317074642,0.3043766,95910.0,95909.0,0.0468]
[1746317074841,0.3043766,95910.0,95909.0,0.2552788]
[1746317075234,0.4233766,95910.0,95909.0,0.2552788]
[1746317075434,0.4243766,95910.0,95909.0,0.2552788]
[1746317075635,0.4243766,95910.0,95909.0,0.0468]
[1746317081653,0.4243766,95910.0,95909.0,0.2552788]
[1746317081958,0.4243766,95910.0,95909.0,0.08442624]
[1746317082552,0.208481,95908.0,95907.0,0.2606026]
[1746317083051,0.326481,95908.0,95907.0,0.2606026]
[1746317083659,0.327481,95908.0,95907.0,0.2084819]
[1746317083960,0.327481,95908.0,95907.0,0.42101494]
[1746317084460,0.328481,95908.0,95907.0,0.21253304]
[1746317084655,0.328481,95908.0,95907.0,0.42101624]
[1746317089460,0.328481,95908.0,95907.0,0.46693382]
[1746317090055,0.328481,95908.0,95907.0,0.25440078]
[1746317095362,0.328481,95908.0,95907.0,0.04591758]
[1746317095569,0.328481,95908.0,95907.0,0.09601758]
[1746317095759,0.328481,95908.0,95907.0,0.30450078]
[1746317095953,0.328481,95908.0,95907.0,0.09601758]
[1746317096162,0.328481,95908.0,95907.0,0.30450078]
[1746317106469,0.12,95908.0,95907.0,0.2585832]
[1746317106660,0.328481,95908.0,95907.0,0.30451059]
[1746317107274,0.210481,95908.0,95907.0,0.30451059]
[1746317107767,0.209481,95908.0,95907.0,0.30451059]
[1746317108664,0.210481,95908.0,95907.0,0.30451059]
[1746317114670,0.209481,95908.0,95907.0,0.30451059]
[1746317114876,0.208481,95908.0,95907.0,0.30451059]
[1746317115677,0.4129169,95915.0,95907.0,0.14814759]
[1746317115871,0.621393,95915.0,95914.0,0.208468]
[1746317116071,0.621393,95915.0,95914.0,0.25439539]
[1746317116579,0.668793,95915.0,95914.0,0.25439539]
[1746317116782,0.668793,95915.0,95914.0,0.35269539]
[1746317117482,0.668793,95915.0,95914.0,0.56518959]
[1746317117483,0.670793,95915.0,95914.0,0.56518959]
[1746317117984,0.672793,95915.0,95914.0,0.56518959]
[1746317121175,0.790793,95915.0,95914.0,0.35269539]
[1746317122184,0.672793,95915.0,95914.0,0.35269539]
[1746317123283,0.837493,95915.0,95914.0,0.35269539]
[1746317124484,0.476693,95915.0,95914.0,0.35269539]
[1746317125082,0.358693,95915.0,95914.0,0.35269539]
[1746317125388,0.311993,95915.0,95914.0,0.35269539]
[1746317125885,0.264593,95915.0,95914.0,0.35269539]
[1746317126086,0.264593,95915.0,95914.0,0.47069539]
[1746317128176,0.310693,95915.0,95914.0,0.47069539]
[1746317129791,0.264593,95915.0,95914.0,0.47069539]
[1746317130489,0.314193,95915.0,95914.0,0.47069539]
[1746317134894,0.363293,95915.0,95914.0,0.47069539]
[1746317153005,0.363293,95915.0,95914.0,0.26222739]
[1746317153200,0.363293,95915.0,95914.0,0.21302739]
[1746317155609,0.363293,95915.0,95914.0,0.1671]
[1746317156609,0.363293,95915.0,95914.0,0.2152]
[1746317160204,0.264593,95915.0,95914.0,0.423668]
[1746317160413,0.264593,95915.0,95914.0,0.46957654]
[1746317165116,0.264593,95915.0,95914.0,0.30128174]
[1746317165316,0.311893,95915.0,95914.0,0.30128174]
[1746317168018,0.309893,95915.0,95914.0,0.30128174]
[1746317168219,0.310893,95915.0,95914.0,0.30128174]
[1746317168421,0.310893,95915.0,95914.0,0.34778174]
[1746317168607,0.308893,95915.0,95914.0,0.34778174]
[1746317168809,0.309893,95915.0,95914.0,0.13931374]
[1746317169015,0.357193,95915.0,95914.0,0.13931374]
[1746317169323,0.407193,95915.0,95914.0,0.04590854]
[1746317169711,0.407193,95915.0,95914.0,0.25841559]
[1746317171723,0.407193,95915.0,95914.0,0.30761559]
[1746317172814,0.407193,95915.0,95914.0,0.25841559]
[1746317173721,0.407193,95915.0,95914.0,0.21250705]
[1746317174524,0.407193,95915.0,95914.0,0.25960705]
[1746317175322,0.407193,95915.0,95914.0,0.28566705]
[1746317175822,0.407193,95915.0,95914.0,0.30000705]
[1746317177124,0.407193,95915.0,95914.0,0.0875]
[1746317177725,0.407193,95915.0,95914.0,0.1372]
[1746317179538,0.407193,95915.0,95914.0,0.18311013]
[1746317180238,0.357193,95915.0,95914.0,0.18311013]
[1746317181536,0.357193,95915.0,95914.0,0.22961013]
[1746317184842,0.357193,95915.0,95914.0,0.27131013]
[1746317186743,0.357193,95915.0,95914.0,0.2254]
[1746317196141,0.357193,95915.0,95914.0,0.2713269]
[1746317198352,0.309893,95915.0,95914.0,0.2713269]
[1746317213263,0.670693,95915.0,95914.0,0.2713269]
[1746317219468,0.670693,95915.0,95914.0,0.4797949]
[1746317219779,0.670693,95915.0,95914.0,0.48394831]
[1746317220167,0.670693,95915.0,95914.0,0.43802141]
[1746317223066,0.670693,95915.0,95914.0,0.2254]
[1746317227872,0.670693,95915.0,95914.0,0.433868]
[1746317228073,0.670693,95915.0,95914.0,0.2254]
[1746317230065,0.670693,95915.0,95914.0,0.27132886]
[1746317250079,0.670693,95915.0,95914.0,0.48397635]
[1746317257578,0.670693,95915.0,95914.0,0.27132886]
[1746317266288,0.309893,95915.0,95914.0,0.27132886]
[1746317266489,0.670693,95915.0,95914.0,0.27132886]
[1746317267689,0.3628,95915.0,95914.0,0.27132886]
[1746317267986,0.2084258,95934.0,95933.0,0.2084223]
[1746317268286,0.2084354,95929.0,95928.0,0.2605371]
[1746317268484,0.2084527,95921.0,95920.0,0.06352]
[1746317268679,0.2084527,95921.0,95920.0,0.31808085]
[1746317269686,0.2084527,95921.0,95920.0,0.32581998]
[1746317270685,0.2094527,95921.0,95920.0,0.34014998]
[1746317271385,0.2104527,95921.0,95920.0,0.34014998]
[1746317272094,0.2104527,95921.0,95920.0,0.38184998]
[1746317272481,0.2104527,95921.0,95920.0,0.34438998]
[1746317274491,0.2104527,95921.0,95920.0,0.29828403]
[1746317277397,0.2104527,95921.0,95920.0,0.08982913]
[1746317277596,0.2430527,95921.0,95920.0,0.08982913]
[1746317277894,0.2430527,95921.0,95920.0,0.29828403]
[1746317278596,0.2104527,95921.0,95920.0,0.29828403]
[1746317281101,0.2104527,95921.0,95920.0,0.08982913]
[1746317281599,0.2434527,95921.0,95920.0,0.08982913]
[1746317282703,0.2434527,95921.0,95920.0,0.15512913]
[1746317285003,0.2434527,95921.0,95920.0,0.36358403]
[1746317286897,0.2434527,95921.0,95920.0,0.08982913]
[1746317287802,0.2434527,95921.0,95920.0,0.12122913]
[1746317289097,0.2434527,95921.0,95920.0,0.15182913]
[1746317290402,0.2434527,95921.0,95920.0,0.36028403]
[1746317290606,0.2104527,95921.0,95920.0,0.36028403]
[1746317299519,0.2104527,95921.0,95920.0,0.20413678]
[1746317299712,0.2104527,95921.0,95920.0,0.25023474]
[1746317302011,0.2104527,95921.0,95920.0,0.25817207]
[1746317303411,0.2104527,95921.0,95920.0,0.32167207]
[1746317318048,0.2428527,95921.0,95920.0,0.32167207]
[1746317319142,0.2428527,95921.0,95920.0,0.32599019]
[1746317323144,0.2428527,95921.0,95920.0,0.11753529]
[1746317323349,0.2428527,95921.0,95920.0,0.27989223]
[1746317323733,0.2428527,95921.0,95920.0,0.00793733]
[1746317323939,0.2084593,95918.0,95917.0,0.0311]
[1746317324246,0.2084593,95918.0,95917.0,0.07723583]
[1746317324448,0.2084593,95918.0,95917.0,0.0311]
[1746317324947,0.2399593,95918.0,95917.0,0.0311]
[1746317326650,0.2399593,95918.0,95917.0,0.0321]
[1746317327350,0.2399593,95918.0,95917.0,0.07823711]
[1746317327650,0.2399593,95918.0,95917.0,0.08623282]
[1746317330053,0.2399593,95918.0,95917.0,0.29469422]
[1746317330445,0.2084593,95918.0,95917.0,0.29469422]
[1746317330751,0.2084559,95920.0,95919.0,0.2084549]
[1746317330951,0.2084559,95920.0,95919.0,0.25459201]
[1746317331351,0.2084559,95920.0,95919.0,0.31949201]
[1746317332153,0.2094559,95920.0,95919.0,0.31949201]
[1746317335848,0.2094559,95920.0,95919.0,0.11103711]
[1746317336658,0.2094559,95920.0,95919.0,0.31949201]
[1746317347770,0.2094559,95920.0,95919.0,0.11103711]
[1746317347969,0.2403559,95920.0,95919.0,0.11103711]
[1746317348967,0.2403559,95920.0,95919.0,0.04613711]
[1746317349473,0.2403559,95920.0,95919.0,0.25459421]
[1746317350871,0.2710559,95920.0,95919.0,0.25459421]
[1746317362084,0.2084593,95918.0,95917.0,0.00799571]
[1746317362375,0.2084614,95917.0,95916.0,0.00595]
[1746317362577,0.2084636,95916.0,95915.0,0.0417]
[1746317362886,0.2084701,95913.0,95912.0,0.208472]
[1746317363083,0.2084701,95913.0,95912.0,0.25459591]
[1746317363286,0.2084701,95913.0,95912.0,0.208472]
[1746317363584,0.2074701,95913.0,95912.0,0.208472]
[1746317363783,0.2406701,95913.0,95912.0,0.208472]
[1746317364686,0.2406701,95913.0,95912.0,0.209472]
[1746317364885,0.2406701,95913.0,95912.0,0.239772]
[1746317365279,0.2406701,95913.0,95912.0,0.270672]
[1746317365980,0.2406701,95913.0,95912.0,0.2786082]
[1746317366387,0.2406701,95913.0,95912.0,0.2776082]
[1746317366588,0.2406701,95913.0,95912.0,0.32372228]
[1746317370092,0.2416701,95913.0,95912.0,0.32372228]
[1746317370790,0.2426701,95913.0,95912.0,0.32372228]
[1746317372291,0.2406701,95913.0,95912.0,0.32372228]
[1746317372591,0.2426701,95913.0,95912.0,0.32372228]
[1746317374382,0.2416701,95913.0,95912.0,0.32372228]
[1746317375090,0.2605766,95922.0,95921.0,0.3126629]
[1746317375286,0.208464,95922.0,95921.0,0.6734629]
[1746317375594,0.208464,95922.0,95921.0,0.7195687]
[1746317376492,0.210464,95922.0,95921.0,0.7195687]
[1746317376992,0.212464,95922.0,95921.0,0.7195687]
[1746317377490,0.004,95922.0,95921.0,0.7195687]
[1746317378490,0.004,95922.0,95921.0,0.7827687]
[1746317378997,0.003,95922.0,95921.0,0.7827687]
[1746317381099,0.002,95922.0,95921.0,0.7827687]
[1746317381990,0.001,95922.0,95921.0,0.7827687]
[1746317382190,0.002,95922.0,95921.0,0.7827687]
[1746317382498,0.2084305,95932.0,95931.0,0.208431]
[1746317382800,0.0521019,95942.0,95941.0,0.2084028]
[1746317382995,0.0521019,95942.0,95941.0,0.5692028]
[1746317383698,0.2605202,95942.0,95941.0,0.5692028]
[1746317384299,0.2655202,95942.0,95941.0,0.5702028]
[1746317384598,0.3298202,95942.0,95941.0,0.6012028]
[1746317385903,0.3348202,95942.0,95941.0,0.6022028]
[1746317387194,0.3268202,95942.0,95941.0,0.6002028]
[1746317387395,0.3288202,95942.0,95941.0,0.6002028]
[1746317388703,0.3268202,95942.0,95941.0,0.6002028]
[1746317388904,0.3298202,95942.0,95941.0,0.6002028]
[1746317394203,0.3298202,95942.0,95941.0,0.5692028]
[1746317395502,0.2084136,95939.0,95938.0,0.2386144]
[1746317395903,0.2084136,95939.0,95938.0,0.2084144]
[1746317396299,0.2084201,95937.0,95936.0,0.2084197]
[1746317396808,0.2698201,95937.0,95936.0,0.2084197]
[1746317397407,0.2708201,95937.0,95936.0,0.2084197]
[1746317399017,0.2718201,95937.0,95936.0,0.2084197]